bitfinex-derivatives/quotes_SOLF0:USTF0_20260126
["timestamp","ask_amount","ask_price","bid_price","bid_amount"]
[1769401241066,3.55897424,122.75,122.69,3.23157566]
[1769401242575,3.55897424,122.75,122.71,0.05164476]
[1769401243778,3.55897424,122.78,122.71,3.28322042]
[1769401243980,3.55897424,122.78,122.71,5.98982239]
[1769401244282,3.55897424,122.78,122.72,5.93817763]
[1769401244666,3.55897424,122.78,122.72,3.23157566]
[1769401244867,3.55897424,122.78,122.73,0.05377848]
[1769401245578,6.26557621,122.78,122.73,0.05377848]
[1769401247481,3.55897424,122.78,122.73,0.05377848]
[1769401249379,6.26557621,122.78,122.73,0.05377848]
[1769401250882,3.55897424,122.77,122.73,0.05377848]
[1769401251785,6.26557621,122.77,122.73,0.05377848]
[1769401252084,3.55897424,122.76,122.73,0.05377848]
[1769401252383,6.26557621,122.76,122.73,0.05377848]
[1769401253085,6.26557621,122.75,122.7,3.23157566]
[1769401253681,6.26557621,122.74,122.67,5.93817763]
[1769401254184,3.55897424,122.74,122.67,5.93817763]
[1769401254372,3.55897424,122.74,122.68,3.23157566]
[1769401256280,3.55897424,122.73,122.68,3.23157566]
[1769401257774,3.55897424,122.75,122.69,3.23157566]
[1769401257980,3.55897424,122.75,122.7,5.93817763]
[1769401258689,6.26557621,122.77,122.7,5.93817763]
[1769401258988,3.55897424,122.77,122.7,5.93817763]
[1769401260586,3.55897424,122.77,122.7,3.23157566]
[1769401260790,3.55897424,122.77,122.7,5.93817763]
[1769401261781,3.55897424,122.75,122.7,3.23157566]
[1769401261984,3.55897424,122.75,122.68,5.93817763]
[1769401262290,3.55897424,122.75,122.69,3.23157566]
[1769401262878,3.55897424,122.75,122.69,5.93817763]
[1769401265279,3.55897424,122.75,122.69,3.23157566]
[1769401265482,3.44508507,122.74,122.69,3.23157566]
[1769401265681,6.15168704,122.73,122.67,3.25627761]
[1769401266391,3.44508507,122.72,122.67,3.25627761]
[1769401267686,3.44508507,122.72,122.65,3.25627761]
[1769401267991,6.15168704,122.71,122.65,3.25627761]
[1769401268789,3.44508507,122.71,122.65,3.25627761]
[1769401270600,6.15168704,122.71,122.65,3.25627761]
[1769401271192,3.44508507,122.7,122.65,3.25627761]
[1769401275595,6.15168704,122.7,122.65,3.25627761]
[1769401277600,3.42567656,122.68,122.63,3.38138323]
[1769401279298,3.42567656,122.68,122.62,2.70660197]
[1769401279601,3.42567656,122.68,122.62,6.0879852]
[1769401280501,3.42567656,122.68,122.62,13.4373852]
[1769401281701,3.42567656,122.68,122.62,10.73078323]
[1769401281902,3.42567656,122.68,122.63,3.38138323]
[1769401282406,3.42567656,122.71,122.65,6.0879852]
[1769401282596,3.42567656,122.71,122.66,6.0879852]
[1769401282900,3.42567656,122.73,122.67,6.0879852]
[1769401283301,0.00100053,122.7,122.67,3.38138323]
[1769401283797,0.00100053,122.7,122.69,0.06153796]
[1769401293304,13.5617695,122.75,122.69,3.35863271]
[1769401293506,3.51306753,122.75,122.69,6.06523468]
[1769401297615,133.8006695,122.77,122.7,6.00369672]
[1769401297910,123.75306753,122.77,122.71,3.29709475]
[1769401298118,123.75306753,122.77,122.71,6.00369672]
[1769401298313,3.51306753,122.77,122.72,3.29709475]
[1769401298513,3.51306753,122.79,122.73,6.05724877]
[1769401299023,3.51306753,122.79,122.73,6.00369672]
[1769401299410,3.51306753,122.79,122.75,0.0530137]
[1769401301422,6.2196695,122.79,122.75,0.0530137]
[1769401302923,6.2196695,122.79,122.73,3.29709475]
[1769401304425,3.51306753,122.79,122.73,3.29709475]
[1769401304625,3.51306753,122.79,122.73,6.00369672]
[1769401304919,10.85106753,122.82,122.74,3.29709475]
[1769401305225,3.51306753,122.81,122.75,6.00369672]
[1769401305619,3.51306753,122.81,122.75,6.00166321]
[1769401306215,6.21763599,122.83,122.77,3.29709475]
[1769401306416,3.51306753,122.83,122.77,6.00166321]
[1769401306618,3.51306753,122.85,122.78,6.00166321]
[1769401307018,10.04016846,122.86,122.79,3.29709475]
[1769401307326,10.84866753,122.86,122.8,3.35957629]
[1769401307728,3.51306753,122.86,122.8,6.06414475]
[1769401307928,3.51306753,122.86,122.81,2.70456846]
[1769401308126,13.55193599,122.88,122.81,6.00166321]
[1769401308329,6.21763599,122.88,122.81,6.00166321]
[1769401308530,3.51306753,122.88,122.82,2.70456846]
[1769401308825,6.21763599,122.88,122.81,3.29709475]
[1769401309029,6.21763599,122.87,122.81,3.29709475]
[1769401309225,3.51306753,122.87,122.81,3.29709475]
[1769401309425,6.21763599,122.87,122.81,3.29709475]
[1769401311119,114.0798,122.89,122.73,70.88]
[1769401311120,3.51306753,122.89,122.82,2.70456846]
[1769401311327,3.51306753,122.88,122.82,2.70456846]
[1769401311623,6.21763599,122.88,122.81,6.00166321]
[1769401312127,7.3339,122.89,122.82,3.29709475]
[1769401312332,2.70456846,122.88,122.82,3.29709475]
[1769401313035,6.21763599,122.88,122.82,3.29709475]
[1769401313434,6.21763599,122.87,122.82,3.29709475]
[1769401320035,3.51306753,122.87,122.82,3.29709475]
[1769401320736,3.51306753,122.89,122.83,6.00166321]
[1769401321240,3.51306753,122.89,122.84,3.29709475]
[1769401322238,6.21763599,122.89,122.82,6.00166321]
[1769401322938,6.21763599,122.89,122.83,3.29709475]
[1769401323138,6.21763599,122.89,122.83,6.00166321]
[1769401323330,3.52845417,122.91,122.84,3.2647729]
[1769401323832,6.23302263,122.91,122.84,3.2647729]
[1769401324034,3.52845417,122.9,122.84,3.2647729]
[1769401324240,6.23302263,122.9,122.84,3.2647729]
[1769401324542,3.52845417,122.9,122.84,3.2647729]
[1769401325344,0.0533156,122.88,122.84,3.2647729]
[1769401325540,0.0533156,122.88,122.84,5.96934136]
[1769401325741,6.23302263,122.92,122.86,3.3256269]
[1769401325933,3.52845417,122.92,122.86,3.3256269]
[1769401326346,3.52845417,122.92,122.86,3.2647729]
[1769401326946,3.52845417,122.92,122.86,5.96934136]
[1769401327144,3.52845417,122.92,122.88,0.06161513]
[1769401329340,6.23302263,122.92,122.88,0.06161513]
[1769401329541,6.23302263,122.92,122.85,2.70456846]
[1769401329542,6.29259391,122.91,122.84,5.96934136]
[1769401329942,3.52845417,122.88,122.82,3.2647729]
[1769401330850,6.23302263,122.9,122.83,3.2647729]
[1769401331950,3.52845417,122.89,122.83,3.2647729]
[1769401332747,6.23302263,122.89,122.83,3.2647729]
[1769401333543,3.52845417,122.89,122.83,3.2647729]
[1769401333751,3.52845417,122.89,122.83,5.96934136]
[1769401333946,3.52845417,122.91,122.85,5.96934136]
[1769401334140,3.52845417,122.91,122.86,3.2647729]
[1769401335043,0.05386818,122.9,122.86,3.2647729]
[1769401335242,0.05386818,122.9,122.86,5.96934136]
[1769401335448,0.05386818,122.9,122.87,3.2647729]
[1769401337144,6.23302263,122.93,122.87,3.32451275]
[1769401338954,3.52845417,122.93,122.87,3.32451275]
[1769401339151,3.52845417,122.93,122.88,3.43492047]
[1769401340156,3.3607689,122.95,122.89,3.43492047]
[1769401341054,3.3607689,122.95,122.91,0.05353182]
[1769401341242,6.06533736,122.95,122.91,0.05353182]
[1769401342849,3.3607689,122.95,122.91,0.05353182]
[1769401351762,6.06533736,122.95,122.91,0.05353182]
[1769401352063,3.3607689,122.94,122.91,0.05353182]
[1769401353566,3.32158362,122.92,122.87,3.2914736]
[1769401354264,3.32158362,122.94,122.88,2.70456846]
[1769401354652,3.32158362,122.94,122.89,5.99604206]
[1769401355364,0.05759453,122.93,122.9,5.99604206]
[1769401355864,3.32158362,122.96,122.9,5.99604206]
[1769401356461,6.02615208,122.96,122.9,3.2914736]
[1769401356765,0.05564327,122.94,122.9,3.2914736]
[1769401358758,0.05564327,122.94,122.9,5.99604206]
[1769401360164,3.32158362,122.98,122.92,2.70456846]
[1769401361167,6.02615208,122.98,122.91,5.99604206]
[1769401361666,6.02615208,122.98,122.94,0.06137565]
[1769401361866,3.32158362,122.96,122.91,3.2914736]
[1769401362066,3.3822716,122.96,122.91,3.2914736]
[1769401362763,6.08684006,122.96,122.91,3.2914736]
[1769401365373,3.32158362,122.95,122.88,10.6252736]
[1769401365675,3.32158362,122.95,122.89,5.9898462]
[1769401366274,0.05724026,122.93,122.89,5.9898462]
[1769401366773,0.05724026,122.93,122.89,3.2914736]
[1769401366969,6.01995622,122.92,122.86,7.3348]
[1769401367373,6.01995622,122.92,122.86,10.6262736]
[1769401367575,3.32158362,122.92,122.86,10.6262736]
[1769401367770,3.32158362,122.94,122.89,3.2914736]
[1769401367976,3.32158362,122.96,122.91,2.6983726]
[1769401368275,6.01995622,122.98,122.91,5.9898462]
[1769401369174,6.01995622,122.97,122.91,3.2914736]
[1769401369372,6.01995622,122.97,122.93,0.05309462]
[1769401370876,7.3286,122.98,122.89,5.9898462]
[1769401370877,6.01995622,122.96,122.89,5.9898462]
[1769401371175,3.32158362,122.95,122.89,3.2914736]
[1769401371478,2.7565525,122.96,122.87,5.9898462]
[1769401371479,3.32158362,122.93,122.87,5.9898462]
[1769401371774,6.01995622,122.93,122.87,3.2914736]
[1769401372075,2.6983726,122.92,122.87,3.2914736]
[1769401372677,0.05839756,122.91,122.87,3.2914736]
[1769401373084,6.07835378,122.91,122.85,3.2914736]
[1769401373273,2.6983726,122.9,122.85,3.2914736]
[1769401374280,6.01995622,122.9,122.85,3.2914736]
[1769401374584,6.01995622,122.9,122.83,10.0349726]
[1769401374585,13.35305622,122.9,122.83,3.2914736]
[1769401375078,6.01995622,122.89,122.83,3.2914736]
[1769401375679,13.35355622,122.89,122.83,3.2914736]
[1769401375881,0.06001264,122.87,122.83,3.2914736]
[1769401376576,10.0310726,122.91,122.84,3.2914736]
[1769401376770,10.0310726,122.91,122.84,3.34959913]
[1769401376970,13.35265622,122.91,122.84,3.34959913]
[1769401379386,6.01995622,122.91,122.84,13.38427173]
[1769401379575,6.01995622,122.91,122.85,3.2914736]
[1769401379782,3.32158362,122.91,122.85,3.2914736]
[1769401380579,3.32158362,122.91,122.87,0.05826749]
[1769401381078,114.0769,122.89,122.78,4.94863091]
[1769401381289,2.6983726,122.88,122.81,4.94863091]
[1769401381583,115.46886321,122.92,122.82,4.94863091]
[1769401381584,2.6983726,122.89,122.82,4.94863091]
[1769401382887,2.6983726,122.88,122.82,4.94863091]
[1769401383476,7.3332,122.9,122.82,4.94863091]
[1769401383680,2.6983726,122.88,122.82,4.94863091]
[1769401383882,2.6983726,122.89,122.82,4.94863091]
[1769401384082,2.6983726,122.9,122.83,4.94863091]
[1769401384288,2.6983726,122.91,122.83,7.64700351]
[1769401384486,2.6983726,122.9,122.84,4.94863091]
[1769401384693,2.6983726,122.91,122.84,4.94863091]
[1769401385291,7.3319,122.92,122.84,4.94863091]
[1769401385492,2.6983726,122.91,122.85,4.94863091]
[1769401385685,2.6983726,122.94,122.87,4.94863091]
[1769401386282,2.6983726,122.93,122.87,4.94863091]
[1769401387287,2.6983726,122.94,122.87,7.64700351]
[1769401387788,2.6983726,122.95,122.87,7.64700351]
[1769401387984,2.6983726,122.95,122.88,4.94863091]
[1769401389085,2.6983726,122.94,122.88,4.94863091]
[1769401389589,2.6983726,122.91,122.85,4.94863091]
[1769401390485,0.05389084,122.89,122.85,4.94863091]
[1769401390685,0.05389084,122.89,122.83,7.64700351]
[1769401393385,0.05389084,122.89,122.83,4.94863091]
[1769401393386,2.75226344,122.89,122.83,4.94863091]
[1769401395992,0.05389084,122.89,122.83,4.94863091]
[1769401396193,0.05389084,122.89,122.84,4.94863091]
[1769401398996,2.6983726,122.93,122.87,4.92168549]
[1769401400386,2.6983726,122.93,122.89,0.05217865]
[1769401403793,128.4758716,122.99,122.83,12.28457482]
[1769401403999,2.6983726,122.89,122.83,4.94777482]
[1769401404194,2.6983726,122.9,122.83,4.94777482]
[1769401406894,7.3325,122.91,122.83,4.94777482]
[1769401407093,2.6983726,122.89,122.83,4.94777482]
[1769401407593,114.0339,122.94,122.83,4.94777482]
[1769401407796,113.9997,122.98,122.87,7.64614742]
[1769401408098,2.6983726,122.94,122.87,7.64614742]
[1769401408396,10.0285726,122.95,122.87,7.64614742]
[1769401408991,10.0285726,122.95,122.87,4.94777482]
[1769401409302,10.0285726,122.95,122.87,7.64614742]
[1769401409503,2.6983726,122.94,122.87,7.64614742]
[1769401410394,2.6983726,122.94,122.87,4.94777482]
[1769401412396,2.6983726,122.94,122.87,7.64614742]
[1769401412397,10.0290726,122.94,122.87,7.64614742]
[1769401412801,10.0290726,122.94,122.87,4.94777482]
[1769401413297,7.3307,122.94,122.87,4.94777482]
[1769401413602,2.6983726,122.97,122.9,4.94777482]
[1769401413803,2.6983726,122.97,122.9,7.64614742]
[1769401414004,2.6983726,122.98,122.9,7.64614742]
[1769401414204,2.6983726,122.97,122.91,4.94777482]
[1769401415903,10.0272726,122.97,122.91,4.94777482]
[1769401416499,10.0261726,122.99,122.93,4.94777482]
[1769401416696,2.6983726,122.99,122.93,4.94777482]
[1769401416898,2.6983726,122.98,122.93,4.94777482]
[1769401418307,116.6953726,122.98,122.91,4.94777482]
[1769401418502,2.6983726,122.96,122.91,4.94777482]
[1769401419499,113.9805,123.0,122.91,4.94777482]
[1769401419706,113.963,123.02,122.93,4.94777482]
[1769401419904,2.6983726,123.01,122.94,4.94777482]
[1769401420106,2.6983726,123.02,122.95,4.94777482]
[1769401420306,113.942,123.04,122.95,4.94777482]
[1769401420307,2.6983726,123.01,122.95,4.94777482]
[1769401421105,10.0249726,123.01,122.95,4.94777482]
[1769401421607,2.6983726,123.0,122.95,4.94777482]
[1769401421797,2.6983726,123.0,122.93,4.94777482]
[1769401424305,2.6983726,123.0,122.94,4.94777482]
[1769401425608,2.69658328,123.0,122.94,4.94777482]
[1769401428711,7.3266,123.01,122.94,4.94777482]
[1769401428911,10.02318328,123.01,122.94,4.94777482]
[1769401430812,2.69658328,123.0,122.94,4.94777482]
[1769401431008,2.69658328,122.99,122.94,4.94777482]
[1769401432711,2.69658328,122.99,122.87,114.0913]
[1769401432712,2.69658328,122.98,122.87,114.0913]
[1769401432914,2.69658328,122.97,122.89,2.69658328]
[1769401433517,2.179743,122.98,122.92,2.69658328]
[1769401433912,4.87632628,122.98,122.91,2.69658328]
[1769401434818,4.87632628,122.98,122.92,3.40582061]
[1769401437220,2.69658328,122.98,122.92,3.40582061]
[1769401438614,2.69658328,122.99,122.92,3.40582061]
[1769401438816,2.69658328,123.0,122.93,3.40582061]
[1769401439119,2.69658328,122.99,122.93,3.40582061]
[1769401439522,0.0517757,122.98,122.93,3.40582061]
[1769401440322,4.92810198,122.98,122.9,3.40582061]
[1769401440622,4.87632628,122.97,122.9,6.10240389]
[1769401441712,0.05149007,122.95,122.9,3.40582061]
[1769401442217,4.87632628,122.94,122.88,3.40582061]
[1769401442423,2.69658328,122.93,122.88,3.40582061]
[1769401443512,0.0578163,122.92,122.88,3.40582061]
[1769401446120,0.0578163,122.92,122.88,6.10240389]
[1769401446918,0.0578163,122.92,122.88,3.40582061]
[1769401448426,2.2393317,122.99,122.91,3.34204289]
[1769401448627,4.93591498,122.99,122.92,3.34204289]
[1769401448920,2.69658328,123.0,122.94,3.34204289]
[1769401449827,2.69658328,123.0,122.96,0.05342341]
[1769401453829,4.93591498,123.0,122.96,0.05342341]
[1769401457625,2.24014404,123.02,122.96,3.45723627]
[1769401457823,2.24014404,123.02,122.96,6.15381955]
[1769401458024,2.69658328,123.03,122.97,3.40381286]
[1769401458324,2.24014404,123.04,122.97,3.40381286]
[1769401458528,2.69658328,123.04,122.97,3.40381286]
[1769401458929,2.69658328,123.04,122.99,3.46615489]
[1769401459229,2.56672732,123.06,122.99,3.46615489]
[1769401459428,113.8372,123.15,123.05,3.56508869]
[1769401459626,113.7791,123.22,123.06,6.26167197]
[1769401459627,2.69658328,123.14,123.06,6.26167197]
[1769401459830,2.69658328,123.13,123.06,6.26167197]
[1769401460232,2.69658328,123.11,123.06,3.56508869]
[1769401460529,2.75108193,123.11,123.06,3.56508869]
[1769401461122,113.8865,123.1,123.03,3.56508869]
[1769401461321,0.05449865,123.11,123.04,6.26167197]
[1769401461527,0.05449865,123.11,123.05,3.56508869]
[1769401461731,2.69658328,123.13,123.05,6.26167197]
[1769401461931,2.69658328,123.12,123.05,6.26167197]
[1769401462930,2.69658328,123.12,123.06,3.56508869]
[1769401463134,2.69658328,123.14,123.07,3.56508869]
[1769401463532,7.318,123.15,123.07,3.56508869]
[1769401465335,113.8558,123.13,123.03,3.56508869]
[1769401465733,7.3201,123.12,123.03,3.56508869]
[1769401466637,7.3188,123.14,123.03,3.56508869]
[1769401466837,7.3188,123.14,123.05,3.56508869]
[1769401469238,7.3195,123.13,123.05,3.56508869]
[1769401470632,113.8767,123.11,123.03,3.56508869]
[1769401471542,7.3214,123.1,123.03,3.56508869]
[1769401472341,130.72,123.14,123.03,3.56508869]
[1769401472647,130.72,123.14,123.04,3.56508869]
[1769401473543,7.3183,123.15,123.06,3.56508869]
[1769401473738,113.8205,123.17,123.06,3.56508869]
[1769401473943,113.35765577,123.18,123.07,3.56508869]
[1769401474144,7.3171,123.17,123.09,3.56508869]
[1769401474348,139.94075946,123.19,123.09,3.56508869]
[1769401474545,33.12075946,123.19,123.09,3.56508869]
[1769401474947,113.8085,123.18,123.09,3.56508869]
[1769401475147,113.8196,123.17,123.09,3.56508869]
[1769401476252,7.3178,123.16,123.09,3.56508869]
[1769401476845,13.49415577,123.18,123.09,3.56508869]
[1769401477240,33.12075946,123.19,123.09,3.56508869]
[1769401478038,7.3165,123.18,123.1,3.56508869]
[1769401478343,33.12075946,123.19,123.1,3.56508869]
[1769401478745,40.43655946,123.19,123.11,3.56508869]
[1769401478944,33.12075946,123.19,123.11,3.56508869]
[1769401480549,146.92305946,123.19,123.11,3.56508869]
[1769401481948,33.12075946,123.19,123.11,3.56508869]
[1769401482745,7.3162,123.18,123.11,3.56508869]
[1769401483453,33.12075946,123.19,123.11,3.56508869]
[1769401483842,33.12075946,123.19,123.12,3.56508869]
[1769401485046,33.12075946,123.19,123.14,3.56508869]
[1769401485242,19.88908699,123.19,123.14,3.56508869]
[1769401485449,8.699e-05,123.19,123.14,3.56508869]
[1769401488758,8.699e-05,123.19,123.15,3.56508869]
[1769401489749,8.699e-05,123.19,123.17,3.56508869]
[1769401490150,6.17208731,123.28,123.17,3.56508869]
[1769401490356,6.17208731,123.28,123.18,3.56508869]
[1769401490655,7.3106,123.28,123.18,3.56508869]
[1769401490959,6.17208731,123.31,123.2,3.56508869]
[1769401491161,119.86458731,123.31,123.2,3.56508869]
[1769401491358,7.3094,123.3,123.2,3.56508869]
[1769401491552,0.04816413,123.3,123.24,0.05871306]
[1769401492656,0.04816413,123.3,123.25,100.0]
[1769401493259,0.04816413,123.32,123.25,103.5513821]
[1769401493965,0.04816413,123.32,123.26,3.5513821]
[1769401494163,0.04816413,123.34,123.27,7.29450422]
[1769401494360,0.04816413,123.34,123.28,7.24103205]
[1769401494553,0.04816413,123.34,123.27,3.60485427]
[1769401494763,0.04816413,123.34,123.28,7.23512494]
[1769401494961,0.04816413,123.34,123.29,7.23512494]
[1769401495258,7.35526413,123.34,123.29,0.06205697]
[1769401495463,119.90337426,123.33,123.25,100.0]
[1769401495762,0.05488695,123.33,123.26,3.56862395]
[1769401495962,119.82968731,123.35,123.26,3.56862395]
[1769401496161,7.307,123.34,123.26,3.56862395]
[1769401497057,120.9705,123.34,123.26,3.56862395]
[1769401497265,0.06159459,123.31,123.26,3.56862395]
[1769401499164,6.17208731,123.33,123.24,3.56862395]
[1769401499469,6.17208731,123.33,123.27,0.059249]
[1769401499868,6.17208731,123.31,123.2,3.59824845]
[1769401500260,70.97208731,123.31,123.2,3.59824845]
[1769401500567,184.66688731,123.31,123.2,3.59824845]
[1769401501558,121.0074,123.3,123.2,3.59824845]
[1769401501759,0.05125968,123.27,123.2,3.59824845]
[1769401505169,0.05125968,123.27,123.2,10.91294845]
[1769401505361,0.05125968,123.27,123.21,3.59824845]
[1769401505560,119.83618731,123.34,123.22,3.63490045]
[1769401505956,113.6795,123.32,123.23,3.57261861]
[1769401506166,6.17208731,123.3,123.23,3.57261861]
[1769401506466,6.17208731,123.3,123.19,3.57261861]
[1769401507166,6.17208731,123.3,123.23,0.0603059]
[1769401507367,6.17208731,123.3,123.24,7.18393168]
[1769401507569,13.48148731,123.3,123.25,7.18393168]
[1769401507768,6.17208731,123.32,123.26,7.18225015]
[1769401507965,6.17208731,123.32,123.23,3.57261861]
[1769401508169,6.17208731,123.34,123.25,3.57261861]
[1769401508372,113.67,123.33,123.26,7.18115773]
[1769401508669,6.17208731,123.34,123.27,5.773e-05]
[1769401508870,0.05355049,123.31,123.25,3.60195678]
[1769401509573,0.05355049,123.31,123.21,3.60195678]
[1769401510072,6.17208731,123.32,123.21,3.60195678]
[1769401510374,7.3092,123.3,123.22,3.60195678]
[1769401510572,0.06198963,123.27,123.22,3.60195678]
[1769401515078,418.82758731,123.35,123.23,3.57096196]
[1769401515278,251.44758731,123.35,123.25,3.57096196]
[1769401516476,251.44758731,123.35,123.29,0.05724134]
[1769401516976,7.3071,123.34,123.29,0.05724134]
[1769401517276,0.0543099,123.33,123.25,3.57096196]
[1769401517876,7.3071,123.34,123.25,3.57096196]
[1769401518079,113.6891,123.31,123.22,3.57096196]
[1769401518378,6.17208731,123.32,123.22,3.57096196]
[1769401518580,7.3094,123.3,123.22,3.57096196]
[1769401519880,0.05904985,123.27,123.22,3.57096196]
[1769401520182,0.05904985,123.27,123.19,3.57096196]
[1769401520577,0.05904985,123.27,123.2,7.13292414]
[1769401520779,64.78,123.28,123.21,7.13292414]
[1769401520983,64.78,123.28,123.22,7.13292414]
[1769401521281,64.78,123.28,123.23,7.13292414]
[1769401521480,138.85208731,123.31,123.24,7.13292414]
[1769401521780,138.85208731,123.31,123.25,7.13292414]
[1769401521979,0.05744994,123.27,123.21,3.57096196]
[1769401524584,0.05744994,123.27,123.15,24.61901217]
[1769401524585,0.00018446,123.27,123.23,3.57096196]
[1769401524980,0.00018446,123.27,123.24,3.57096196]
[1769401525181,7.3077,123.33,123.24,3.57096196]
[1769401526081,7.3077,123.33,123.27,0.05817688]
[1769401530590,0.05465886,123.31,123.27,0.05817688]
[1769401534289,0.05465886,123.31,123.24,3.57096196]
[1769401534497,6.25980441,123.31,123.24,3.57096196]
[1769401534992,13.56840441,123.31,123.24,3.57096196]
[1769401535195,7.36325886,123.31,123.24,3.57096196]
[1769401536294,7.3101,123.29,123.2,3.57096196]
[1769401536990,7.3088,123.31,123.21,10.88506196]
[1769401537296,7.3088,123.31,123.22,3.57096196]
[1769401537484,143.5488,123.31,123.22,3.57096196]
[1769401537688,0.05309873,123.27,123.22,3.57096196]
[1769401538793,7.34042293,123.33,123.22,3.57096196]
[1769401539099,7.34042293,123.33,123.24,3.5444126]
[1769401539100,0.03272293,123.32,123.24,3.5444126]
[1769401540290,0.03272293,123.32,123.27,0.05839274]
[1769401540490,0.03272293,123.34,123.27,3.60280534]
[1769401540693,6.20989086,123.35,123.27,3.60280534]
[1769401540897,0.03272293,123.36,123.27,3.60280534]
[1769401541298,0.03272293,123.36,123.27,3.5444126]
[1769401541498,0.03272293,123.35,123.27,3.5444126]
[1769401541695,0.03272293,123.35,123.3,0.05515562]
[1769401542893,6.23963691,123.37,123.3,3.59956822]
[1769401543101,0.03272293,123.37,123.3,3.59956822]
[1769401543589,0.03272293,123.4,123.3,3.59956822]
[1769401543795,6.23648998,123.4,123.3,3.59956822]
[1769401544200,7.33612293,123.4,123.3,3.5444126]
[1769401544603,7.33612293,123.4,123.34,0.05807304]
[1769401545391,7.33682293,123.39,123.34,0.05807304]
[1769401545794,0.03272293,123.39,123.34,0.05807304]
[1769401545993,0.03272293,123.39,123.32,3.5444126]
[1769401546202,7.3027,123.41,123.32,3.5444126]
[1769401546406,7.3027,123.41,123.35,0.052439]
[1769401546601,7.33542293,123.41,123.35,0.052439]
[1769401546797,113.5812,123.43,123.35,3.5968516]
[1769401547005,7.3017,123.43,123.35,3.5968516]
[1769401547304,7.3017,123.43,123.35,3.5444126]
[1769401547696,7.3017,123.43,123.38,0.06095827]
[1769401547896,136.55272293,123.44,123.38,0.06095827]
[1769401548500,113.542,123.47,123.38,3.60537087]
[1769401548501,0.03272293,123.47,123.38,3.60537087]
[1769401548896,30.68765596,123.5,123.42,3.5444126]
[1769401549403,30.72037889,123.5,123.45,0.05922955]
[1769401549699,30.72037889,123.5,123.42,3.5444126]
[1769401549700,113.5247,123.49,123.42,3.5444126]
[1769401549898,0.03272293,123.48,123.39,3.5444126]
[1769401551399,30.68765596,123.5,123.39,3.5444126]
[1769401551602,30.68765596,123.5,123.42,3.5444126]
[1769401552895,30.68765596,123.5,123.45,3.57006846]
[1769401553703,27.1268819,123.5,123.45,3.57006846]
[1769401553904,23.44870141,123.5,123.45,3.57006846]
[1769401554094,113.4435,123.58,123.46,120.37306471]
[1769401554296,8.94897212,123.59,123.48,6.82606471]
[1769401554496,8.94897212,123.59,123.48,120.35186471]
[1769401554803,108.46606471,123.63,123.5,113.5074]
[1769401555004,8.94897212,123.62,123.52,0.0553274]
[1769401555212,122.35437212,123.62,123.52,0.0553274]
[1769401555403,8.94897212,123.59,123.47,113.5344]
[1769401555605,8.94897212,123.57,123.46,6.82606471]
[1769401556203,8.94897212,123.57,123.45,6.82606471]
[1769401556405,8.94897212,123.56,123.45,6.82606471]
[1769401556610,8.94897212,123.55,123.44,7.3005]
[1769401556808,8.94897212,123.55,123.44,120.8679]
[1769401557399,8.94897212,123.55,123.46,113.5478]
[1769401557600,97.46897212,123.58,123.47,113.5387]
[1769401558305,97.46897212,123.58,123.51,0.05748446]
[1769401558608,8.97456221,123.57,123.51,0.05748446]
[1769401559109,8.97456221,123.57,123.45,113.5544]
[1769401559407,8.97456221,123.53,123.42,113.5865]
[1769401559607,8.97456221,123.53,123.41,292.57646471]
[1769401559912,8.97456221,123.53,123.41,285.7504]
[1769401560108,8.97456221,123.53,123.42,113.5842]
[1769401560310,0.06075331,123.48,123.42,113.5842]
[1769401560812,0.06075331,123.48,123.43,120.8766]
[1769401561008,8.97456221,123.52,123.41,113.5935]
[1769401561213,8.97456221,123.52,123.44,0.05827568]
[1769401561610,8.97456221,123.52,123.44,113.62427568]
[1769401561909,8.97456221,123.55,123.41,6.82606471]
[1769401562106,8.97456221,123.58,123.48,113.528]
[1769401562301,8.97456221,123.58,123.49,113.5183]
[1769401562706,8.97456221,123.58,123.49,120.8157]
[1769401562907,8.97456221,123.58,123.47,120.36336471]
[1769401563109,8.97456221,123.58,123.48,113.5293]
[1769401563308,8.97456221,123.58,123.52,0.06111422]
[1769401566014,8.97456221,123.57,123.47,7.2989]
[1769401567114,8.97456221,123.57,123.47,120.8397]
[1769401567415,0.05206047,123.53,123.47,120.8397]
[1769401567812,0.05206047,123.53,123.44,120.8648]
[1769401568011,9.02662268,123.53,123.44,7.3003]
[1769401568212,9.02662268,123.53,123.43,184.46]
[1769401568517,9.02662268,123.53,123.37,23.99427133]
[1769401568518,8.97456221,123.52,123.4,113.5989]
[1769401568814,8.97456221,123.5,123.39,113.6142]
[1769401569212,0.06040855,123.47,123.39,113.6142]
[1769401569413,0.06040855,123.47,123.4,120.9075]
[1769401569614,0.06040855,123.47,123.42,113.5828]
[1769401569812,8.97456221,123.5,123.42,113.5828]
[1769401570019,8.97456221,123.5,123.4,113.5983]
[1769401570606,0.06176939,123.46,123.4,113.5983]
[1769401570811,0.06176939,123.46,123.4,7.303]
[1769401571616,0.06176939,123.46,123.37,120.9374]
[1769401571916,8.97456221,123.44,123.32,113.6725]
[1769401572118,8.97456221,123.43,123.33,120.976]